[Event "41st Amateur D7"]
[Site "ChessGUI4"]
[Date "2013.07.08"]
[Round "21.1"]
[White "Butcher 1.64 64-bit"]
[Black "Carballo 0.8"]
[Result "1-0"]
[BlackElo "2273"]
[ECO "D20"]
[EventDate "2013.??.??"]
[TimeControl "40/1500:40/1500:40/1500"]
[WhiteElo "2355"]

{ i5 Quad } 1.d4 { [%eval 0,1] [%emt 0:00:00] } 1...d5
{ [%eval 0,1] [%emt 0:00:00] } 2.c4 { [%eval 0,1] [%emt 0:00:00] } 2...dxc4
{ [%eval 0,1] [%emt 0:00:00] } 3.e4 { [%eval 0,1] [%emt 0:00:00] } 3...e5
{ [%eval 0,1] [%emt 0:00:00] } 4.Nf3 { [%eval 0,1] [%emt 0:00:00] } 4...Bb4+
{ [%eval 0,1] [%emt 0:00:00] } 5.Nc3 { [%eval 0,1] [%emt 0: 00:00] } 5...exd4
{ [%eval 0,1] [%emt 0:00:00] } 6.Nxd4 { [%eval 0,1] [%emt 0:00:00] } 6...Ne7
{ [%eval 0,1] [%emt 0:00:00] } 7.Bxc4 { [%eval 0,1] [%emt 0:00:00] } 7...Nbc6
{ [%eval 0,1] [%emt 0:00:00] } 8.Be3 { [%eval 0,1] [%emt 0:00:00] } 8...O-O
{ [%eval 0, 1] [%emt 0:00:00] } 9.Nxc6 { [%eval 12,10] [%emt 0:01:02] }
9...Bxc3+ { [%eval -17,13] [%emt 0:00:37] (Nxc6) } 10.bxc3
{ [%eval 40,12] [%emt 0:01:00] (bxc3) } 10...Nxc6
{ [%eval -26,15] [%emt 0:00:36] (Nxc6) } 11.Qxd8
{ [%eval 42,12] [%emt 0:00:59] (O-O) } 11...Rxd8
{ [%eval -26,15] [%emt 0:00:35] (Rxd8) } 12.Bf4
{ [%eval 35,12] [%emt 0:00:52] (Bf4) } 12...Be6
{ [%eval -8,14] [%emt 0:00:34] (Be6) } 13.Be2
{ [%eval 40,13] [%emt 0:01:04] (Be2) } 13...Rd7
{ [%eval -8,14] [%emt 0:00:33] (Rac8) } 14.O-O
{ [%eval 33,12] [%emt 0:01:04] (O-O) } 14...Rad8
{ [%eval -9,13] [%emt 0:00:32] (f6) } 15.f3
{ [%eval 29,12] [%emt 0:01:02] (Bb5) } 15...Ne7
{ [%eval 5,14] [%emt 0:00: 32] (Na5) } 16.a4
{ [%eval 43,13] [%emt 0:01:01] (a4) } 16...c6
{ [%eval 1,13] [%emt 0: 00:31] (Ng6) } 17.Rfd1
{ [%eval 54,12] [%emt 0:01:00] (Rfd1) } 17...f5
{ [%eval 4,15] [%emt 0:00:30] (f6) } 18.Rxd7
{ [%eval 60,12] [%emt 0:00:59] (Rxd7) } 18...Rxd7
{ [%eval 2,16] [%emt 0:00:29] (Rxd7) } 19.a5
{ [%eval 68,12] [%emt 0:00:58] (exf5) } 19...fxe4
{ [%eval 18,15] [%emt 0:00:29] (a6) } 20.fxe4
{ [%eval 67,12] [%emt 0:00: 57] (fxe4) } 20...Ng6
{ [%eval 24,16] [%emt 0:00:28] (b5) } 21.Be3
{ [%eval 61,13] [%emt 0:00:48] (Be3) } 21...a6
{ [%eval 24,15] [%emt 0:00:27] (a6) } 22.Kf2
{ [%eval 55,12] [%emt 0:00:48] (Re1) } 22...Ne5
{ [%eval 18,14] [%emt 0:00:26] (Ne5) } 23.Bd4
{ [%eval 51,12] [%emt 0:00:46] (Bd4) } 23...Nc4
{ [%eval 23,14] [%emt 0:00:26] (Nc4) } 24.e5
{ [%eval 44,12] [%emt 0:00:46] (Bxc4) } 24...Rf7+
{ [%eval 36,15] [%emt 0:00:25] (Nd2) } 25.Kg1
{ [%eval 50,13] [%emt 0:00:45] (Kg1) } 25...h6
{ [%eval 36,15] [%emt 0: 00:24] (h6) } 26.Ra4
{ [%eval 46,12] [%emt 0:00:45] (h4) } 26...Nd2
{ [%eval 32,14] [%emt 0:00:24] (Nd2) } 27.Bd3
{ [%eval 35,11] [%emt 0:00:44] (h4) } 27...Rd7
{ [%eval 45,14] [%emt 0:00:23] (Bf5) } 28.Kf2
{ [%eval 22,12] [%emt 0:00:43] (Bg6) } 28...c5
{ [%eval 64,13] [%emt 0:00:23] (c5) } 29.Ke2
{ [%eval 34,12] [%emt 0:00:42] (Ke2) } 29...Nb3
{ [%eval 50,14] [%emt 0:00:22] (Bb3) } 30.Be3
{ [%eval 24,13] [%emt 0:00:41] (Be3) } 30...Re7
{ [%eval 60,13] [%emt 0:00:21] (Rd5) } 31.Be4
{ [%eval 37,11] [%emt 0: 00:40] (Bc2) } 31...g5
{ [%eval 51,12] [%emt 0:00:21] (c4) } 32.Kf2
{ [%eval 22,11] [%emt 0:00:39] (h4) } 32...Kg7
{ [%eval 58,12] [%emt 0:00:20] (Bf7) } 33.Bf3
{ [%eval 20,11] [%emt 0:00:34] (Bc2) } 33...Bd7
{ [%eval 62,13] [%emt 0:00:20] (Bf5) } 34.Ra3
{ [%eval 15,13] [%emt 0:00:27] (Ra3) } 34...Be6
{ [%eval 52,15] [%emt 0:00:19] (c4) } 35.g3
{ [%eval 7,11] [%emt 0:00:28] (g4) } 35...Bc4
{ [%eval 66,12] [%emt 0:00:19] (Rf7) } 36.Ra4
{ [%eval 27,12] [%emt 0:00:27] (h4) } 36...Bb5
{ [%eval 58,14] [%emt 0:00:18] (Bf7) } 37.Ra3
{ [%eval 15,12] [%emt 0:00:25] (Ra3) } 37...Bc4
{ [%eval 43,14] [%emt 0: 00:18] (c4) } 38.h4
{ [%eval 42,12] [%emt 0:00:19] (h4) } 38...Rxe5
{ [%eval 33,13] [%emt 0:00:17] (gxh4) } 39.hxg5
{ [%eval 56,12] [%emt 0:00:21] (Bxb7) } 39...hxg5
{ [%eval 61,15] [%emt 0:00:17] (hxg5) } 40.g4
{ [%eval 0,13] [%emt 0:00:18] (g4) } 40...Re7
{ [%eval 58,15] [%emt 0:00:17] (Kf6) } 41.Bxg5
{ [%eval 89,14] [%emt 0:00:44] (Bxg5) } 41...Rd7
{ [%eval 51,17] [%emt 0:00:54] (Rd7) } 42.Be3
{ [%eval 61,13] [%emt 0:01:14] (Be4) } 42...Bg8
{ [%eval 49,15] [%emt 0:00:52] (Be6) } 43.Be4
{ [%eval 67,13] [%emt 0:00:48] (g5) } 43...Re7
{ [%eval 46,16] [%emt 0:00:51] (c4) } 44.Bf3
{ [%eval 72,13] [%emt 0:00:48] (Bc2) } 44...Rd7
{ [%eval 52,15] [%emt 0:00:50] (c4) } 45.Be4
{ [%eval 68,13] [%emt 0:00:47] (g5) } 45...Re7
{ [%eval 48,15] [%emt 0:00:48] (c4) } 46.Kf3
{ [%eval 73,13] [%emt 0:00:51] (Bf3) } 46...Rf7+
{ [%eval 35,16] [%emt 0:00:47] (c4) } 47.Kg3
{ [%eval 88,13] [%emt 0:00:51] (Kg3) } 47...Re7
{ [%eval 25,17] [%emt 0: 00:46] (c4) } 48.Kf4
{ [%eval 80,13] [%emt 0:00:51] (Kf4) } 48...Rf7+
{ [%eval 20,16] [%emt 0:00:45] (c4) } 49.Bf5
{ [%eval 87,14] [%emt 0:00:50] (Bf5) } 49...Re7
{ [%eval 16,15] [%emt 0:00:44] (Rf8) } 50.g5
{ [%eval 115,13] [%emt 0:00:46] (Ra2) } 50...Bd5
{ [%eval -11,15] [%emt 0:00:43] (Re8) } 51.Ra2
{ [%eval 127,13] [%emt 0:00:44] (Ra2) } 51...Be6
{ [%eval -17,15] [%emt 0:00:42] (Be6) } 52.Be4
{ [%eval 135,13] [%emt 0:00:42] (Be4) } 52...Rf7+
{ [%eval -21,16] [%emt 0:00:40] (Bf7) } 53.Ke5
{ [%eval 160, 14] [%emt 0:00:48] (Ke5) } 53...Re7
{ [%eval -26,16] [%emt 0:00:39] (Bc4) } 54.Kd6
{ [%eval 164,13] [%emt 0:00:40] (Kd6) } 54...Re8
{ [%eval -34,17] [%emt 0:00:39] (Re8) } 55.Bf4
{ [%eval 198,12] [%emt 0:00:40] (Bxb7) } 55...Bc4
{ [%eval -38,16] [%emt 0:00: 37] (Bc4) } 56.Be5+
{ [%eval 188,13] [%emt 0:01:03] (Bxb7) } 56...Kg8
{ [%eval -47,17] [%emt 0:00:37] (Kf8) } 57.Bf5
{ [%eval 240,13] [%emt 0:00:38] (Bd5) } 57...Nd4
{ [%eval -67,16] [%emt 0:00:36] (Nd4) } 58.cxd4
{ [%eval 270,14] [%emt 0:00:33] (cxd4) } 58...Bxa2
{ [%eval -115,18] [%emt 0:00:35] (Bxa2) } 59.Kxc5
{ [%eval 263,15] [%emt 0:00:38] (Kxc5) } 59...Rd8
{ [%eval -121,17] [%emt 0:00:34] (Rd8) } 60.Be4
{ [%eval 309,15] [%emt 0:00:37] (Be4) } 60...Rd7
{ [%eval -126,17] [%emt 0:00:33] (Rd7) } 61.d5
{ [%eval 352,15] [%emt 0:00:37] (g6) } 61...Re7
{ [%eval -132,18] [%emt 0:00:32] (Re7) } 62.Kd4
{ [%eval 395,15] [%emt 0:00:36] (Kd4) } 62...Rf7
{ [%eval -144,18] [%emt 0:00:31] (Rf7) } 63.d6
{ [%eval 476,14] [%emt 0:00:36] (d6) } 63...Be6
{ [%eval -255,15] [%emt 0:00:31] (Be6) } 64.Bf6
{ [%eval 493,13] [%emt 0:00:35] (Bf6) } 64...Bc8
{ [%eval -269,16] [%emt 0:00:30] (Rf8) } 65.Bd5
{ [%eval 532,14] [%emt 0:00: 35] (Ke5) } 65...Kf8
{ [%eval -536,20] [%emt 0:00:29] (Kf8) } 66.Ke5
{ [%eval 538,14] [%emt 0:00:33] (Ke5) } 66...Bd7
{ [%eval -608,19] [%emt 0:00:28] (Rh7) } 67.g6
{ [%eval 1090,14] [%emt 0:00:30] (g6) } 67...Rg7
{ [%eval -648,20] [%emt 0:00:28] (Rg7) } 68.Bxg7+
{ [%eval 1238,14] [%emt 0:00:31] (Bxg7) } 68...Kxg7
{ [%eval -1364,21] [%emt 0:00:27] (Kxg7) } 1-0

[Event "41st Amateur D7"]
[Site "ChessGUI4"]
[Date "2013.07.08"]
[Round "21.2"]
[White "Tigran 2.3 64-bit"]
[Black "Gibbon 2.57a 64-bit"]
[Result "0-1"]
[BlackElo "2251"]
[ECO "E11"]
[EventDate "2013.??.??"]
[TimeControl "40/1500:40/1500:40/1500"]
[WhiteElo "2289"]

{ i5 Quad } 1.d4 { [%eval 0,1] [%emt 0:00:00] } 1...Nf6
{ [%eval 0,1] [%emt 0:00:00] } 2.c4 { [%eval 0,1] [%emt 0:00:00] } 2...e6
{ [%eval 0,1] [%emt 0:00:00] } 3.Nf3 { [%eval 0,1] [%emt 0:00:00] } 3...Bb4+
{ [%eval 0,1] [%emt 0:00:00] } 4.Nbd2 { [%eval 0,1] [%emt 0:00:00] } 4...a5
{ [%eval 0,1] [%emt 0:00:00] } 5.a3 { [%eval 0,1] [%emt 0:00:00] } 5...Bxd2+
{ [%eval 0,1] [%emt 0:00:00] } 6.Bxd2 { [%eval 0,1] [%emt 0:00: 00] } 6...a4
{ [%eval 0,1] [%emt 0:00:00] } 7.Bg5 { [%eval 0,1] [%emt 0:00:00] } 7...h6
{ [%eval 0,1] [%emt 0:00:00] } 8.Bh4 { [%eval 0,1] [%emt 0:00:00] } 8...c5
{ [%eval 0,1] [%emt 0:00:00] } 9.e3 { [%eval 52,13] [%emt 0:00:38] } 9...Nc6
{ [%eval -28,15] [%emt 0:01:49] (g5) } 10.Bd3
{ [%eval 70,13] [%emt 0:00:42] (Bxf6) } 10...g5
{ [%eval -11,14] [%emt 0:00:45] (d6) } 11.Bg3
{ [%eval 88,13] [%emt 0:00:42] (Bg3) } 11...Qa5+
{ [%eval -25,14] [%emt 0:01:37] (d6) } 12.Kf1
{ [%eval 118,12] [%emt 0:00:42] (Qd2) } 12...Qb6
{ [%eval -11,13] [%emt 0:01:31] (d5) } 13.Qc1
{ [%eval 123,12] [%emt 0:00:43] (Be5) } 13...g4
{ [%eval -18,13] [%emt 0:00:31] (Nh5) } 14.dxc5
{ [%eval 136, 14] [%emt 0:00:43] (dxc5) } 14...Qxc5
{ [%eval -44,14] [%emt 0:00:18] (Qxc5) } 15.Qc3
{ [%eval 148,14] [%emt 0:00:43] (Qc3) } 15...gxf3
{ [%eval -45,15] [%emt 0:01:09] (Qe7) } 16.Qxf6
{ [%eval 147,13] [%emt 0:00:41] (Qxf6) } 16...fxg2+
{ [%eval -57,14] [%emt 0:00:24] (fxg2) } 17.Kxg2
{ [%eval 153,14] [%emt 0:00:43] (Kxg2) } 17...Rf8
{ [%eval -57,13] [%emt 0:00:51] (Rg8) } 18.Qxh6
{ [%eval 155,11] [%emt 0:00:43] (Qxh6) } 18...b6
{ [%eval -47,11] [%emt 0:00:12] (Ne5) } 19.Rhd1
{ [%eval 155,12] [%emt 0:00: 44] (Qf6) } 19...Bb7
{ [%eval -49,12] [%emt 0:00:31] (Bb7) } 20.Be4
{ [%eval 136,12] [%emt 0:00:44] (Qf4) } 20...Rg8
{ [%eval -55,12] [%emt 0:00:44] (Qxc4) } 21.Kg1
{ [%eval 98,12] [%emt 0:00:44] (Qf4) } 21...O-O-O
{ [%eval 0,11] [%emt 0:00:13] } 22.Bh7
{ [%eval 63,12] [%emt 0:00:44] (Rac1) } 22...Rg4
{ [%eval 32,11] [%emt 0:00:14] (Ne5) } 23.h3
{ [%eval 85,12] [%emt 0:00:45] (Bc2) } 23...Rg5
{ [%eval 48,12] [%emt 0:00:11] (Rg5) } 24.Bc2
{ [%eval 66,12] [%emt 0:00:45] (Be4) } 24...Rdg8
{ [%eval 52,12] [%emt 0:00:58] (Ne5) } 25.h4
{ [%eval 3,12] [%emt 0:00:45] (Kh2) } 25...Rg4
{ [%eval 55,11] [%emt 0:00:14] (Rh5) } 26.Kf1
{ [%eval 0,11] [%emt 0:00:42] (Kf1) } 26...Ba6
{ [%eval 45,10] [%emt 0:00:12] (Ne5) } 27.e4
{ [%eval -94,10] [%emt 0:00:46] (Bd3) } 27...Rxg3
{ [%eval 823,12] [%emt 0:00:12] (Bxc4) } 28.fxg3
{ [%eval -923,12] [%emt 0:00:46] (Bd3) } 28...Rxg3
{ [%eval 916,11] [%emt 0:00:05] (Rxg3) } 29.Qh8+
{ [%eval -1437,12] [%emt 0:00:47] (Ke1) } 29...Kc7
{ [%eval 2248,14] [%emt 0:00:16] (Kc7) } 30.Rxd7+
{ [%eval -2340,12] [%emt 0:00:47] (Rxd7) } 30...Kxd7
{ [%eval 2248,10] [%emt 0:00:00] (Kxd7) } 31.Rd1+
{ [%eval -16938,12] [%emt 0:00:47] (Rd1) } 0-1

[Event "41st Amateur D7"]
[Site "ChessGUI4"]
[Date "2013.07.08"]
[Round "21.3"]
[White "FireFly 2.6.0 64-bit"]
[Black "Waxman 2011"]
[Result "1-0"]
[BlackElo "2256"]
[ECO "C45"]
[EventDate "2013.??.??"]
[TimeControl "40/1500:40/1500:40/1500"]
[WhiteElo "2258"]

{ i5 Quad } 1.e4 { [%eval 0,1] [%emt 0:00:00] } 1...e5
{ [%eval 0,1] [%emt 0:00:00] } 2.Nf3 { [%eval 0,1] [%emt 0:00:00] } 2...Nc6
{ [%eval 0,1] [%emt 0:00:00] } 3.d4 { [%eval 0,1] [%emt 0:00:00] } 3...exd4
{ [%eval 0,1] [%emt 0:00:00] } 4.Nxd4 { [%eval 0,1] [%emt 0:00:00] } 4...Bc5
{ [%eval 0,1] [%emt 0:00:00] } 5.Be3 { [%eval 0,1] [%emt 0:00:00] } 5...Qf6
{ [%eval 0,1] [%emt 0:00:00] } 6.c3 { [%eval 0,1] [%emt 0:00: 00] } 6...Nge7
{ [%eval 0,1] [%emt 0:00:00] } 7.Bc4 { [%eval 0,1] [%emt 0:00:00] } 7...b6
{ [%eval 0,1] [%emt 0:00:00] } 8.f4 { [%eval 0,1] [%emt 0:00:00] } 8...Bb7
{ [%eval 0,1] [%emt 0:00:00] } 9.O-O { [%eval 1,11] [%emt 0:00:57] } 9...Na5
{ [%eval -20,11] [%emt 0:00:36] (O-O) } 10.Bd3
{ [%eval 35,11] [%emt 0:00:56] (Bd3) } 10...Nac6
{ [%eval -30, 12] [%emt 0:00:41] (Nac6) } 11.e5
{ [%eval 30,11] [%emt 0:00:56] (Nc2) } 11...Qh4
{ [%eval -9,11] [%emt 0:00:41] (Qh6) } 12.Be4
{ [%eval 52,11] [%emt 0:00:55] (Nc2) } 12...O-O
{ [%eval -22,11] [%emt 0:00:55] (Rb8) } 13.Nd2
{ [%eval 61,10] [%emt 0:00: 54] (Nd2) } 13...Ng6
{ [%eval -39,10] [%emt 0:00:45] (d5) } 14.Rf2
{ [%eval 60,10] [%emt 0:00:53] (Nf5) } 14...Bxd4
{ [%eval -73,12] [%emt 0:00:58] (Qe7) } 15.cxd4
{ [%eval 142,12] [%emt 0:00:52] (cxd4) } 15...f5
{ [%eval -97,12] [%emt 0:00:45] (f5) } 16.Nf3
{ [%eval 150,12] [%emt 0:00:52] (exf6) } 16...Qh5
{ [%eval -81,13] [%emt 0:01: 03] (Qe7) } 17.Bxc6
{ [%eval 167,12] [%emt 0:00:51] (Bxc6) } 17...dxc6
{ [%eval -60,14] [%emt 0:00:54] (Bxc6) } 18.Qb3+
{ [%eval 262,12] [%emt 0:00:41] (Qb3) } 18...Kh8
{ [%eval -123,14] [%emt 0:01:13] (Kh8) } 19.Ng5
{ [%eval 230,12] [%emt 0:00:41] (Ng5) } 19...Nh4
{ [%eval -126,13] [%emt 0:00:59] (Nh4) } 20.Rc1
{ [%eval 212,11] [%emt 0:00:41] (Ne6) } 20...Rab8
{ [%eval -126,12] [%emt 0:00:35] (Qe8) } 21.g3
{ [%eval 228,10] [%emt 0:00:40] (e6) } 21...h6
{ [%eval -93,12] [%emt 0:00:29] (h6) } 22.gxh4
{ [%eval 218,11] [%emt 0:00:40] (Ne6) } 22...hxg5
{ [%eval -67,11] [%emt 0:00:09] (hxg5) } 23.hxg5
{ [%eval 240,11] [%emt 0:00:40] (hxg5) } 23...c5
{ [%eval -121,12] [%emt 0:00:34] (Rfd8) } 24.Qd1
{ [%eval 218,12] [%emt 0:00:39] (Qd1) } 24...Qxd1+
{ [%eval -108,14] [%emt 0:00:38] (Qg6) } 25.Rxd1
{ [%eval 260,12] [%emt 0:00:39] (Rxd1) } 25...Rbd8
{ [%eval -121,15] [%emt 0:00:48] (Rfd8) } 26.Rfd2
{ [%eval 298,13] [%emt 0:00:30] (Rff1) } 26...Bf3
{ [%eval -128,16] [%emt 0:00:44] (c4) } 27.Rf1
{ [%eval 317,14] [%emt 0:00:30] (Rf1) } 27...cxd4
{ [%eval -153,16] [%emt 0:01:36] (cxd4) } 28.Rxf3
{ [%eval 232,14] [%emt 0:00:30] (Bxd4) } 28...dxe3
{ [%eval -139,14] [%emt 0:00:16] (dxe3) } 29.Rxd8
{ [%eval 218,14] [%emt 0:00:31] (Rxd8) } 29...Rxd8
{ [%eval -126,15] [%emt 0:00:12] (Rxd8) } 30.Rxe3
{ [%eval 234,14] [%emt 0:00:31] (Rxe3) } 30...Kg8
{ [%eval -150,15] [%emt 0:00:37] (Kg8) } 31.Ra3
{ [%eval 208,14] [%emt 0:00:30] (g6) } 31...a5
{ [%eval -146,16] [%emt 0:00:35] (a5) } 32.Rc3
{ [%eval 192,15] [%emt 0:00:31] (Rc3) } 32...c5
{ [%eval -138,17] [%emt 0:00:45] (Rd4) } 33.Rb3
{ [%eval 181,15] [%emt 0:00:31] (Rb3) } 33...Rd4
{ [%eval -134,17] [%emt 0:00:44] (Rd4) } 34.Rxb6
{ [%eval 187,14] [%emt 0:00:31] (Rxb6) } 34...Rxf4
{ [%eval -143,16] [%emt 0:00:37] (Rxf4) } 35.g6
{ [%eval 203,14] [%emt 0:00:31] (Rb5) } 35...Kf8
{ [%eval -137, 17] [%emt 0:00:44] (Kf8) } 36.Kg2
{ [%eval 244,15] [%emt 0:00:31] (Rb8) } 36...Re4
{ [%eval -152,18] [%emt 0:00:46] (Ke7) } 37.Rb8+
{ [%eval 263,15] [%emt 0:00:31] (Rb8) } 37...Ke7
{ [%eval -139,3] [%emt 0:00:00] (Ke7) } 38.Rb7+
{ [%eval 251,15] [%emt 0:00:31] (Rb7) } 38...Ke6
{ [%eval -127,17] [%emt 0:00:34] (Ke6) } 39.Rxg7
{ [%eval 251,14] [%emt 0:00:31] (Rxg7) } 39...Rxe5
{ [%eval -164,17] [%emt 0:01:04] (Rg4) } 40.Rb7
{ [%eval 405,14] [%emt 0:00:19] (Rc7) } 40...Kf6
{ [%eval -146,17] [%emt 0:00:22] (Kf6) } 41.g7
{ [%eval 404,15] [%emt 0:00:23] (g7) } 41...Re8
{ [%eval -168,17] [%emt 0:00:37] (Re8) } 42.Kf3
{ [%eval 404,15] [%emt 0:00:23] (Kg3) } 42...Rd8
{ [%eval -169,16] [%emt 0:00:36] (Rg8) } 43.h3
{ [%eval 404,13] [%emt 0:00: 23] (Rd7) } 43...Rg8
{ [%eval -187,18] [%emt 0:00:38] (a4) } 44.Kf4
{ [%eval 404,16] [%emt 0:00:23] (Kf4) } 44...c4
{ [%eval -199,18] [%emt 0:00:31] (a4) } 45.h4
{ [%eval 404,15] [%emt 0:00:23] (a4) } 45...a4
{ [%eval -234,17] [%emt 0:00:27] (Rxg7) } 46.a3
{ [%eval 404,15] [%emt 0:00:24] (a3) } 46...Kg6
{ [%eval -269,18] [%emt 0:00:32] (Kg6) } 47.Rc7
{ [%eval 404,15] [%emt 0:00:24] (h5) } 47...Rb8
{ [%eval -244,17] [%emt 0:01: 22] (Ra8) } 48.Rxc4
{ [%eval 404,14] [%emt 0:00:24] (Rd7) } 48...Kxg7
{ [%eval -226,19] [%emt 0:00:39] (Kxg7) } 49.Rxa4
{ [%eval 403,15] [%emt 0:00:24] (Rb4) } 49...Rxb2
{ [%eval -219,19] [%emt 0:00:42] (Rxb2) } 50.Kxf5
{ [%eval 399,14] [%emt 0:00:24] (Kxf5) } 50...Kh6
{ [%eval -269,15] [%emt 0:00:34] (Rb5) } 51.Rb4
{ [%eval 399,16] [%emt 0:00:25] (Kg4) } 51...Rc2
{ [%eval -269,15] [%emt 0:00:38] (Rf2) } 52.a4
{ [%eval 398,15] [%emt 0:00:25] (a4) } 52...Kh5
{ [%eval -271,16] [%emt 0:00:57] (Rf2) } 53.Ke6
{ [%eval 392,15] [%emt 0:00:25] (Ke6) } 53...Rf2
{ [%eval -271,16] [%emt 0:00: 32] (Rf2) } 54.Re4
{ [%eval 392,15] [%emt 0:00:26] (Rd4) } 54...Rd2
{ [%eval -271,16] [%emt 0:00:33] (Ra2) } 55.Rc4
{ [%eval 368,15] [%emt 0:00:26] (Ke5) } 55...Rd1
{ [%eval -271,16] [%emt 0:00:31] (Rd1) } 56.Ke5
{ [%eval 368,15] [%emt 0:00:26] (Ke5) } 56...Kg6
{ [%eval -316,16] [%emt 0:01:24] (Rd3) } 57.Rd4
{ [%eval 368,14] [%emt 0:00:26] (a5) } 57...Rc1
{ [%eval -289,16] [%emt 0:00:31] (Rc1) } 58.Ke6
{ [%eval 352,14] [%emt 0:00:27] (Kd5) } 58...Kh5
{ [%eval -289,16] [%emt 0:00:29] (Kh5) } 59.Kd5
{ [%eval 368,15] [%emt 0:00:27] (Kd5) } 59...Kg6
{ [%eval -309,16] [%emt 0:00: 30] (Kg6) } 60.Rg4+
{ [%eval 368,14] [%emt 0:00:28] (Rc4) } 60...Kf7
{ [%eval -314,16] [%emt 0:01:15] (Kh6) } 61.Rb4
{ [%eval 386,13] [%emt 0:00:28] (Rc4) } 61...Rf1
{ [%eval -310,15] [%emt 0:00:42] (Ra1) } 62.Kc6
{ [%eval 473,14] [%emt 0:00:28] (Rb5) } 62...Rf5
{ [%eval -329,15] [%emt 0:00:29] (Kg6) } 63.Rb5
{ [%eval 496,15] [%emt 0:00:29] (Kb6) } 63...Rf6+
{ [%eval -351,15] [%emt 0:00:29] (Rf6) } 64.Kb7
{ [%eval 502,14] [%emt 0:00:29] (Kb7) } 64...Kg7
{ [%eval -371,15] [%emt 0:00:30] (Kg7) } 65.Rg5+
{ [%eval 524,15] [%emt 0:00:30] (a5) } 65...Kf8
{ [%eval -362,15] [%emt 0:00: 42] (Kh6) } 66.a5
{ [%eval 552,15] [%emt 0:00:30] (a5) } 66...Rf7+
{ [%eval -449,15] [%emt 0:00:23] (Rf7) } 67.Kc6
{ [%eval 582,14] [%emt 0:00:31] (Kb6) } 67...Rf6+
{ [%eval -547,15] [%emt 0:00:55] (Rf6) } 68.Kb5
{ [%eval 600,14] [%emt 0:00:31] (Kb5) } 1-0

[Event "41st Amateur D7"]
[Site "ChessGUI4"]
[Date "2013.07.08"]
[Round "21.4"]
[White "ChessKiss 1.7 64-bit"]
[Black "ProChess 1.02AD"]
[Result "0-1"]
[BlackElo "2244"]
[ECO "D58"]
[EventDate "2013.??.??"]
[TimeControl "40/1500:40/1500:40/1500"]
[WhiteElo "2214"]

{ i5 Quad } 1.d4 { [%eval 0,1] [%emt 0:00:00] } 1...Nf6
{ [%eval 0,1] [%emt 0:00:00] } 2.c4 { [%eval 0,1] [%emt 0:00:00] } 2...e6
{ [%eval 0,1] [%emt 0:00:00] } 3.Nf3 { [%eval 0,1] [%emt 0:00:00] } 3...d5
{ [%eval 0,1] [%emt 0:00:00] } 4.Nc3 { [%eval 0,1] [%emt 0:00:00] } 4...Be7
{ [%eval 0,1] [%emt 0:00:00] } 5.Bg5 { [%eval 0,1] [%emt 0: 00:00] } 5...h6
{ [%eval 0,1] [%emt 0:00:00] } 6.Bh4 { [%eval 0,1] [%emt 0:00:00] } 6...O-O
{ [%eval 0,1] [%emt 0:00:00] } 7.e3 { [%eval 0,1] [%emt 0:00:00] } 7...b6
{ [%eval 0,1] [%emt 0:00:00] } 8.Bd3 { [%eval 0,1] [%emt 0:00:00] } 8...dxc4
{ [%eval 0,1] [%emt 0: 00:00] } 9.Bxc4 { [%eval 48,13] [%emt 0:00:43] }
9...Nc6 { [%eval -26,12] [%emt 0:00: 40] (Bb7) } 10.O-O
{ [%eval 52,12] [%emt 0:00:41] (O-O) } 10...Bb7
{ [%eval -25,12] [%emt 0:01:22] (Bb7) } 11.a3
{ [%eval 55,12] [%emt 0:00:40] (Bg3) } 11...Nd5
{ [%eval -22,12] [%emt 0:01:17] (Na5) } 12.Bxd5
{ [%eval 65,12] [%emt 0:00:39] (Bxe7) } 12...exd5
{ [%eval -11,13] [%emt 0:00:38] (Bxh4) } 13.Bxe7
{ [%eval 65,13] [%emt 0:00: 38] (Bxe7) } 13...Nxe7
{ [%eval -14,12] [%emt 0:00:38] (Nxe7) } 14.Rc1
{ [%eval 61,12] [%emt 0:00:37] (Qc2) } 14...c5
{ [%eval -10,12] [%emt 0:02:12] (Ng6) } 15.Qb3
{ [%eval 67,11] [%emt 0:00:36] (Re1) } 15...c4
{ [%eval -6,12] [%emt 0:00:46] (Ba6) } 16.Qc2
{ [%eval 59,12] [%emt 0:00:35] (Qc2) } 16...Ng6
{ [%eval -5,12] [%emt 0:00:38] (Ng6) } 17.b3
{ [%eval 49,13] [%emt 0:00:31] (Rfe1) } 17...Qd6
{ [%eval -2,12] [%emt 0: 01:10] (Rc8) } 18.bxc4
{ [%eval 74,12] [%emt 0:00:33] (bxc4) } 18...dxc4
{ [%eval 0,12] [%emt 0:01:08] (dxc4) } 19.Nb5
{ [%eval 59,12] [%emt 0:00:32] (Nd2) } 19...Qd7
{ [%eval 231,12] [%emt 0:00:26] (Qf6) } 20.Qxc4
{ [%eval -303,11] [%emt 0:00:31] (Qxc4) } 20...Bxf3
{ [%eval 233,12] [%emt 0:00:47] (Bxf3) } 21.Qc7
{ [%eval -341,13] [%emt 0:00:38] (Qc7) } 21...Qxb5
{ [%eval 242,13] [%emt 0:00:30] (Qxb5) } 22.gxf3
{ [%eval -351,13] [%emt 0:00:29] (gxf3) } 22...Qa5
{ [%eval 239,12] [%emt 0:00:36] (Qa6) } 23.Rfd1
{ [%eval -329,12] [%emt 0:00:28] (Ra1) } 23...Qxa3
{ [%eval 288,12] [%emt 0: 00:48] (Qh5) } 24.d5
{ [%eval -322,11] [%emt 0:00:27] (f4) } 24...Rfd8
{ [%eval 296,11] [%emt 0:00:37] (Nh4) } 25.d6
{ [%eval -298,11] [%emt 0:00:25] (f4) } 25...Qa5
{ [%eval 300,11] [%emt 0:00:27] (b5) } 26.Qb7
{ [%eval -359,11] [%emt 0:00:24] (Qc4) } 26...Nh4
{ [%eval 314,11] [%emt 0:00:20] (Qh5) } 27.Rc4
{ [%eval -352,12] [%emt 0:00:24] (Rc4) } 27...Rab8
{ [%eval 349,12] [%emt 0:00:22] (Rab8) } 28.Qc6
{ [%eval -372,11] [%emt 0:00:16] (Qd5) } 28...g5
{ [%eval 355,11] [%emt 0:00:15] (Qh5) } 29.Kh1
{ [%eval -358,10] [%emt 0:00:24] (Qd5) } 29...Qf5
{ [%eval 411,11] [%emt 0:00: 19] (b5) } 30.Rxh4
{ [%eval -546,11] [%emt 0:00:23] (Rg4) } 30...gxh4
{ [%eval 473,13] [%emt 0:00:19] (gxh4) } 31.f4
{ [%eval -595,12] [%emt 0:00:23] (Qe4) } 31...Rbc8
{ [%eval 498,12] [%emt 0:00:15] (b5) } 32.Qf3
{ [%eval -575,12] [%emt 0:00:23] (Qf3) } 32...Rc3
{ [%eval 494,11] [%emt 0:00:19] (Qd7) } 33.Qg2+
{ [%eval -552,11] [%emt 0:00:21] (Qg2) } 33...Kf8
{ [%eval 514,11] [%emt 0:00:12] (Kh8) } 34.Qb7
{ [%eval -729,13] [%emt 0:00:22] (Qb7) } 34...Qe6
{ [%eval 567,12] [%emt 0:00:42] (Qd7) } 0-1